[Event "Late-Titled-Tuesday-Blitz-May-28-2024"]
[Site "Chess.com"]
[Date "2024.05.28"]
[Round "11"]
[White "McCarthyStone"]
[Black "Lavandum24"]
[Result "1/2-1/2"]
[WhiteElo "2464"]
[BlackElo "1861"]
[TimeControl "180+1"]
[EndTime "16:05:50 PDT"]
[Termination "Game drawn by repetition"]

1. d4 {[%clk 0:03:00.9]} 1... Nc6 {[%clk 0:02:59.7]} 2. d5 {[%clk 0:02:57.3]}
2... Ne5 {[%clk 0:02:59.9]} 3. e4 {[%clk 0:02:57.6]} 3... Ng6 {[%clk 0:02:59]}
4. h4 {[%clk 0:02:56.7]} 4... h5 {[%clk 0:02:57.9]} 5. Be2 {[%clk 0:02:53.8]}
5... Nf6 {[%clk 0:02:57.4]} 6. Nc3 {[%clk 0:02:53.6]} 6... e5 {[%clk 0:02:54.7]}
7. Bg5 {[%clk 0:02:52.9]} 7... Bb4 {[%clk 0:02:49]} 8. Qd3 {[%clk 0:02:42.9]}
8... a6 {[%clk 0:02:33.2]} 9. g3 {[%clk 0:02:31.6]} 9... d6 {[%clk 0:02:28.7]}
10. f4 {[%clk 0:02:21.7]} 10... exf4 {[%clk 0:02:19.8]} 11. gxf4 {[%clk
0:02:22.6]} 11... Qe7 {[%clk 0:02:19.6]} 12. O-O-O {[%clk 0:02:07.2]} 12... Bxc3
{[%clk 0:02:12.1]} 13. Qxc3 {[%clk 0:02:06.3]} 13... Bg4 {[%clk 0:01:47.5]} 14.
Bxg4 {[%clk 0:02:02.7]} 14... hxg4 {[%clk 0:01:46.3]} 15. h5 {[%clk 0:01:48.6]}
15... O-O-O {[%clk 0:01:43.3]} 16. Qd4 {[%clk 0:01:46.9]} 16... Qxe4 {[%clk
0:01:35.8]} 17. Bxf6 {[%clk 0:01:43.8]} 17... Qxh1 {[%clk 0:01:25.1]} 18. Bxd8
{[%clk 0:01:42.6]} 18... Qxh5 {[%clk 0:01:17.4]} 19. Bg5 {[%clk 0:01:12.6]}
19... f6 {[%clk 0:01:15.7]} 20. Bxf6 {[%clk 0:01:12.2]} 20... gxf6 {[%clk
0:01:15.1]} 21. Qxf6 {[%clk 0:01:13.1]} 21... Rf8 {[%clk 0:01:06.2]} 22. Qe6+
{[%clk 0:01:09.9]} 22... Kb8 {[%clk 0:01:06]} 23. Ne2 {[%clk 0:01:09.6]} 23...
Nxf4 {[%clk 0:00:59.5]} 24. Nxf4 {[%clk 0:00:58.1]} 24... Rxf4 {[%clk
0:00:59.3]} 25. Qe7 {[%clk 0:00:31.6]} 25... Qh6 {[%clk 0:00:47.1]} 26. Kb1
{[%clk 0:00:19.5]} 26... Rf8 {[%clk 0:00:44.6]} 27. a3 {[%clk 0:00:14]} 27...
Rg8 {[%clk 0:00:42.1]} 28. Rf1 {[%clk 0:00:09.7]} 28... g3 {[%clk 0:00:37.9]}
29. Rf7 {[%clk 0:00:09.4]} 29... Qh1+ {[%clk 0:00:37.8]} 30. Ka2 {[%clk
0:00:07.1]} 30... Qxd5+ {[%clk 0:00:37.8]} 31. b3 {[%clk 0:00:07.7]} 31... Qc6
{[%clk 0:00:36.3]} 32. Kb2 {[%clk 0:00:06.6]} 32... g2 {[%clk 0:00:35.8]} 33.
Rg7 {[%clk 0:00:06.8]} 33... Rxg7 {[%clk 0:00:30.5]} 34. Qxg7 {[%clk 0:00:07.7]}
34... Ka7 {[%clk 0:00:29.9]} 35. a4 {[%clk 0:00:07.8]} 35... Qf3 {[%clk
0:00:28.7]} 36. Qd4+ {[%clk 0:00:06.5]} 36... b6 {[%clk 0:00:27.5]} 37. Qg7
{[%clk 0:00:07.1]} 37... Kb7 {[%clk 0:00:26.7]} 38. a5 {[%clk 0:00:07.6]} 38...
Qf1 {[%clk 0:00:24.4]} 39. axb6 {[%clk 0:00:06.1]} 39... Kxb6 {[%clk 0:00:20.7]}
40. Qd4+ {[%clk 0:00:06.4]} 40... Kb7 {[%clk 0:00:20.2]} 41. Qd5+ {[%clk
0:00:06.3]} 41... Ka7 {[%clk 0:00:18.6]} 42. Qc6 {[%clk 0:00:03.4]} 42... g1=Q
{[%clk 0:00:17]} 43. Qxc7+ {[%clk 0:00:03.6]} 43... Ka8 {[%clk 0:00:15.9]} 44.
Qc8+ {[%clk 0:00:04.2]} 44... Ka7 {[%clk 0:00:16]} 45. Qc7+ {[%clk 0:00:05.1]}
45... Ka8 {[%clk 0:00:16]} 46. Qc8+ {[%clk 0:00:05.8]} 46... Ka7 {[%clk
0:00:16.4]} 47. Qc7+ {[%clk 0:00:06.5]} 1/2-1/2

[Event "Late-Titled-Tuesday-Blitz-May-28-2024"]
[Site "Chess.com"]
[Date "2024.05.28"]
[Round "11"]
[White "Goryachkina"]
[Black "MatthewG-p4p"]
[Result "0-1"]
[WhiteElo "2718"]
[BlackElo "2845"]
[TimeControl "180+1"]
[EndTime "16:05:55 PDT"]
[Termination "MatthewG-p4p won by checkmate"]

1. Nf3 {[%clk 0:02:59.2]} 1... c5 {[%clk 0:03:00]} 2. e4 {[%clk 0:02:58]} 2...
g6 {[%clk 0:03:00.1]} 3. c3 {[%clk 0:02:54.3]} 3... Bg7 {[%clk 0:02:57.8]} 4. d4
{[%clk 0:02:54.2]} 4... cxd4 {[%clk 0:02:58.7]} 5. cxd4 {[%clk 0:02:54.5]} 5...
d5 {[%clk 0:02:59.3]} 6. e5 {[%clk 0:02:53.8]} 6... a6 {[%clk 0:02:59.3]} 7. h3
{[%clk 0:02:50.2]} 7... Nc6 {[%clk 0:02:59.2]} 8. Be2 {[%clk 0:02:40.1]} 8... f6
{[%clk 0:02:58.9]} 9. exf6 {[%clk 0:02:18.6]} 9... Nxf6 {[%clk 0:02:59.8]} 10.
O-O {[%clk 0:02:17.1]} 10... O-O {[%clk 0:02:59.8]} 11. Nc3 {[%clk 0:02:16.3]}
11... Nh5 {[%clk 0:02:56.2]} 12. Qb3 {[%clk 0:02:00.8]} 12... e6 {[%clk
0:02:49.8]} 13. Be3 {[%clk 0:01:35.8]} 13... Nf4 {[%clk 0:02:46.5]} 14. Rfe1
{[%clk 0:01:26.4]} 14... Nxe2+ {[%clk 0:02:39.1]} 15. Nxe2 {[%clk 0:01:25.3]}
15... Rxf3 {[%clk 0:02:39.8]} 16. gxf3 {[%clk 0:01:25.1]} 16... Qh4 {[%clk
0:02:39.5]} 17. Qd3 {[%clk 0:01:16.7]} 17... Qxh3 {[%clk 0:02:35.7]} 18. Ng3
{[%clk 0:01:15.1]} 18... Bd7 {[%clk 0:02:31.2]} 19. Rad1 {[%clk 0:01:11.2]}
19... Rf8 {[%clk 0:02:29.6]} 20. f4 {[%clk 0:01:05.6]} 20... Ne7 {[%clk
0:01:51.5]} 21. Qf1 {[%clk 0:00:52.6]} 21... Qh4 {[%clk 0:01:50.5]} 22. Qg2
{[%clk 0:00:51.3]} 22... Bh6 {[%clk 0:01:31.8]} 23. f5 {[%clk 0:00:35.2]} 23...
Bxe3 {[%clk 0:01:23.9]} 24. Rxe3 {[%clk 0:00:33.1]} 24... Nxf5 {[%clk
0:01:22.4]} 25. Nxf5 {[%clk 0:00:32.6]} 25... Rxf5 {[%clk 0:01:22.8]} 26. Rg3
{[%clk 0:00:29.4]} 26... Bb5 {[%clk 0:01:18]} 27. b3 {[%clk 0:00:14.9]} 27...
Qf6 {[%clk 0:00:42.7]} 28. a4 {[%clk 0:00:12.4]} 28... Bc6 {[%clk 0:00:27.1]}
29. Rd2 {[%clk 0:00:08.7]} 29... Rf4 {[%clk 0:00:27]} 30. Rg4 {[%clk 0:00:07.5]}
30... Rf5 {[%clk 0:00:27.7]} 31. Rg3 {[%clk 0:00:07.7]} 31... Kg7 {[%clk
0:00:27.9]} 32. Rd1 {[%clk 0:00:07.4]} 32... h5 {[%clk 0:00:28.2]} 33. Rd2
{[%clk 0:00:04.6]} 33... g5 {[%clk 0:00:28.6]} 34. Rd1 {[%clk 0:00:04.2]} 34...
Kg6 {[%clk 0:00:28.8]} 35. Re3 {[%clk 0:00:04.2]} 35... Rf4 {[%clk 0:00:28.8]}
36. Rde1 {[%clk 0:00:04.2]} 36... Bd7 {[%clk 0:00:29.5]} 37. Rd1 {[%clk
0:00:03.6]} 37... Rxd4 {[%clk 0:00:26.5]} 38. Rxd4 {[%clk 0:00:03.6]} 38... Qxd4
{[%clk 0:00:27.4]} 39. Qg3 {[%clk 0:00:03.9]} 39... Qf4 {[%clk 0:00:24.7]} 40.
Qh3 {[%clk 0:00:02.9]} 40... g4 {[%clk 0:00:22.1]} 41. Qh4 {[%clk 0:00:02.4]}
41... d4 {[%clk 0:00:17.6]} 42. Rd3 {[%clk 0:00:02.5]} 42... Qc1+ {[%clk
0:00:17.2]} 43. Kh2 {[%clk 0:00:02.1]} 43... Bc6 {[%clk 0:00:17.5]} 44. Kg3
{[%clk 0:00:01.3]} 44... Qg1+ {[%clk 0:00:17.4]} 45. Kf4 {[%clk 0:00:01.7]}
45... Qc1+ {[%clk 0:00:13]} 46. Ke5 {[%clk 0:00:01.9]} 46... Qc5+ {[%clk
0:00:13.1]} 47. Kf4 {[%clk 0:00:01.5]} 47... Qd6# {[%clk 0:00:12.4]} 0-1

[Event "Late-Titled-Tuesday-Blitz-May-28-2024"]
[Site "Chess.com"]
[Date "2024.05.28"]
[Round "11"]
[White "crazycheesecake"]
[Black "gamboajp"]
[Result "1-0"]
[WhiteElo "2140"]
[BlackElo "2046"]
[TimeControl "180+1"]
[EndTime "16:05:55 PDT"]
[Termination "crazycheesecake won on time"]

1. Nf3 {[%clk 0:03:00.9]} 1... e6 {[%clk 0:02:55.3]} 2. c4 {[%clk 0:02:58.8]}
2... d5 {[%clk 0:02:54.1]} 3. g3 {[%clk 0:02:47.9]} 3... c5 {[%clk 0:02:53.6]}
4. cxd5 {[%clk 0:02:36.2]} 4... exd5 {[%clk 0:02:53.4]} 5. d4 {[%clk 0:02:35.3]}
5... Nf6 {[%clk 0:02:51.9]} 6. Bg2 {[%clk 0:02:34.7]} 6... Nc6 {[%clk
0:02:49.4]} 7. O-O {[%clk 0:02:33.7]} 7... cxd4 {[%clk 0:02:49.6]} 8. Nxd4
{[%clk 0:02:32]} 8... Bc5 {[%clk 0:02:49.1]} 9. Nb3 {[%clk 0:02:24.9]} 9... Bb6
{[%clk 0:02:49.1]} 10. Nc3 {[%clk 0:02:18.2]} 10... d4 {[%clk 0:02:41.1]} 11.
Na4 {[%clk 0:02:14.1]} 11... O-O {[%clk 0:02:39.4]} 12. Nxb6 {[%clk 0:02:13.2]}
12... axb6 {[%clk 0:02:30.2]} 13. Bg5 {[%clk 0:02:02.5]} 13... Re8 {[%clk
0:02:09.9]} 14. Qd2 {[%clk 0:01:51.5]} 14... h6 {[%clk 0:02:02.3]} 15. Bxf6
{[%clk 0:01:45.9]} 15... Qxf6 {[%clk 0:02:02.2]} 16. Rfd1 {[%clk 0:01:34.5]}
16... Be6 {[%clk 0:01:47.1]} 17. Nxd4 {[%clk 0:01:24.6]} 17... Nxd4 {[%clk
0:01:39.5]} 18. Qxd4 {[%clk 0:01:23.4]} 18... Qxd4 {[%clk 0:01:39.8]} 19. Rxd4
{[%clk 0:01:22.1]} 19... Rxa2 {[%clk 0:01:39.6]} 20. Rxa2 {[%clk 0:01:18.2]}
20... Bxa2 {[%clk 0:01:39.4]} 21. e3 {[%clk 0:01:18.2]} 21... Rc8 {[%clk
0:01:29]} 22. Bxb7 {[%clk 0:00:57.1]} 22... Rc1+ {[%clk 0:01:13.6]} 23. Kg2
{[%clk 0:00:56]} 23... Rc7 {[%clk 0:01:04.2]} 24. Be4 {[%clk 0:00:54.1]} 24...
g6 {[%clk 0:01:00.8]} 25. Rb4 {[%clk 0:00:52.4]} 25... Re7 {[%clk 0:00:46.9]}
26. Kf3 {[%clk 0:00:34.4]} 26... Re6 {[%clk 0:00:44.4]} 27. b3 {[%clk
0:00:31.5]} 27... Rf6+ {[%clk 0:00:36.1]} 28. Kg2 {[%clk 0:00:28.4]} 28... Rd6
{[%clk 0:00:24.1]} 29. Bb7 {[%clk 0:00:16.8]} 29... Bb1 {[%clk 0:00:22.4]} 30.
e4 {[%clk 0:00:16.7]} 30... Re6 {[%clk 0:00:17.7]} 31. Bd5 {[%clk 0:00:16.5]}
31... Rd6 {[%clk 0:00:17.7]} 32. Rc4 {[%clk 0:00:14.4]} 32... Kg7 {[%clk
0:00:17.7]} 33. Rc1 {[%clk 0:00:14.2]} 33... Bd3 {[%clk 0:00:16.1]} 34. Rc7
{[%clk 0:00:13.5]} 34... Rf6 {[%clk 0:00:14.6]} 35. e5 {[%clk 0:00:13.4]} 35...
Rf5 {[%clk 0:00:13.5]} 36. f4 {[%clk 0:00:11.8]} 36... g5 {[%clk 0:00:12.1]} 37.
e6 {[%clk 0:00:05.7]} 37... Rxd5 {[%clk 0:00:10.2]} 38. e7 {[%clk 0:00:03]}
38... Be4+ {[%clk 0:00:06.9]} 39. Kh3 {[%clk 0:00:02.2]} 39... g4+ {[%clk
0:00:03.6]} 40. Kh4 {[%clk 0:00:02.1]} 40... Kg6 {[%clk 0:00:01.9]} 41. e8=Q
{[%clk 0:00:01.7]} 41... Rh5+ {[%clk 0:00:02]} 42. Kxg4 {[%clk 0:00:01.7]} 1-0

[Event "Late-Titled-Tuesday-Blitz-May-28-2024"]
[Site "Chess.com"]
[Date "2024.05.28"]
[Round "11"]
[White "Karttunen"]
[Black "DeTimmerman"]
[Result "0-1"]
[WhiteElo "2670"]
[BlackElo "2753"]
[TimeControl "180+1"]
[EndTime "16:05:56 PDT"]
[Termination "DeTimmerman won on time"]

1. d4 {[%clk 0:03:00.9]} 1... Nf6 {[%clk 0:02:59.8]} 2. c4 {[%clk 0:03:00.3]}
2... e6 {[%clk 0:03:00]} 3. Nc3 {[%clk 0:02:56.7]} 3... Bb4 {[%clk 0:03:00.2]}
4. e3 {[%clk 0:02:56.6]} 4... Ne4 {[%clk 0:02:57.3]} 5. Qc2 {[%clk 0:02:53]}
5... f5 {[%clk 0:02:57.6]} 6. Bd3 {[%clk 0:02:52.2]} 6... O-O {[%clk 0:02:57.9]}
7. Ne2 {[%clk 0:02:48.4]} 7... b6 {[%clk 0:02:58.1]} 8. f3 {[%clk 0:02:46.1]}
8... Bxc3+ {[%clk 0:02:55.9]} 9. bxc3 {[%clk 0:02:42.7]} 9... Nd6 {[%clk
0:02:55.7]} 10. c5 {[%clk 0:02:20.7]} 10... bxc5 {[%clk 0:02:40.3]} 11. dxc5
{[%clk 0:02:20.3]} 11... Nf7 {[%clk 0:02:40.4]} 12. f4 {[%clk 0:02:12]} 12...
Bb7 {[%clk 0:02:37.1]} 13. O-O {[%clk 0:02:05.5]} 13... Nc6 {[%clk 0:02:28]} 14.
e4 {[%clk 0:02:04.9]} 14... g6 {[%clk 0:02:25.2]} 15. Rb1 {[%clk 0:01:57.7]}
15... Rb8 {[%clk 0:02:24.3]} 16. Be3 {[%clk 0:01:51.2]} 16... Ne7 {[%clk
0:02:10.6]} 17. e5 {[%clk 0:01:44.4]} 17... Bc6 {[%clk 0:02:02.6]} 18. Nd4
{[%clk 0:01:37.2]} 18... Rxb1 {[%clk 0:01:51.6]} 19. Rxb1 {[%clk 0:01:36.1]}
19... Qa8 {[%clk 0:01:52.1]} 20. Nxc6 {[%clk 0:01:33.4]} 20... Nxc6 {[%clk
0:01:44]} 21. Be2 {[%clk 0:01:21.5]} 21... Rb8 {[%clk 0:01:42.7]} 22. Rd1 {[%clk
0:01:21.2]} 22... Rd8 {[%clk 0:01:32.4]} 23. Bf3 {[%clk 0:01:19.2]} 23... Qc8
{[%clk 0:01:27]} 24. Qa4 {[%clk 0:01:04.2]} 24... g5 {[%clk 0:01:11.3]} 25. g3
{[%clk 0:01:04]} 25... g4 {[%clk 0:01:00.4]} 26. Bg2 {[%clk 0:01:03]} 26... Qb7
{[%clk 0:00:56.2]} 27. h3 {[%clk 0:00:38.8]} 27... h5 {[%clk 0:00:55.1]} 28. h4
{[%clk 0:00:28.8]} 28... Kf8 {[%clk 0:00:54.2]} 29. Kh2 {[%clk 0:00:28.7]} 29...
Ke7 {[%clk 0:00:54.3]} 30. Qc2 {[%clk 0:00:17.5]} 30... Rb8 {[%clk 0:00:53]} 31.
Qd3 {[%clk 0:00:17.7]} 31... Rd8 {[%clk 0:00:50]} 32. Rb1 {[%clk 0:00:17.5]}
32... Qa8 {[%clk 0:00:48]} 33. Qa6 {[%clk 0:00:13.9]} 33... Rb8 {[%clk
0:00:42.5]} 34. Rxb8 {[%clk 0:00:11]} 34... Qxb8 {[%clk 0:00:34.3]} 35. Bxc6
{[%clk 0:00:07.5]} 35... dxc6 {[%clk 0:00:35.2]} 36. Qxc6 {[%clk 0:00:07.9]}
36... Nd8 {[%clk 0:00:31.8]} 37. Qg2 {[%clk 0:00:06]} 37... Qb5 {[%clk
0:00:31.3]} 38. Qd2 {[%clk 0:00:03.5]} 38... Nc6 {[%clk 0:00:27.5]} 39. Kg2
{[%clk 0:00:03.6]} 39... Qc4 {[%clk 0:00:27.2]} 40. Bf2 {[%clk 0:00:03.3]} 40...
a5 {[%clk 0:00:26]} 41. Kg1 {[%clk 0:00:03.4]} 41... a4 {[%clk 0:00:26.2]} 42.
Qc2 {[%clk 0:00:01.7]} 42... a3 {[%clk 0:00:24.6]} 43. Qd2 {[%clk 0:00:01.7]}
43... Qb5 {[%clk 0:00:20.2]} 44. Qc2 {[%clk 0:00:01.7]} 44... Qb2 {[%clk
0:00:19.5]} 45. Qa4 {[%clk 0:00:02.1]} 45... Kd7 {[%clk 0:00:19]} 46. Qc4 {[%clk
0:00:01.4]} 46... Qb1+ {[%clk 0:00:16.9]} 47. Kh2 {[%clk 0:00:01.1]} 47... Qc2
{[%clk 0:00:16.5]} 48. Qb5 {[%clk 0:00:01]} 48... Qxf2+ {[%clk 0:00:16.1]} 0-1

[Event "Late-Titled-Tuesday-Blitz-May-28-2024"]
[Site "Chess.com"]
[Date "2024.05.28"]
[Round "11"]
[White "lamomiablanca"]
[Black "giomar27"]
[Result "0-1"]
[WhiteElo "2604"]
[BlackElo "2482"]
[TimeControl "180+1"]
[EndTime "16:06:01 PDT"]
[Termination "giomar27 won on time"]

1. e4 {[%clk 0:03:00.9]} 1... e5 {[%clk 0:02:55.7]} 2. Nf3 {[%clk 0:03:00.3]}
2... Nc6 {[%clk 0:02:55.7]} 3. Nc3 {[%clk 0:02:59.8]} 3... Nf6 {[%clk
0:02:55.2]} 4. g3 {[%clk 0:02:59.5]} 4... d5 {[%clk 0:02:51.8]} 5. exd5 {[%clk
0:02:59.2]} 5... Nxd5 {[%clk 0:02:52.7]} 6. Bg2 {[%clk 0:02:59.4]} 6... Nxc3
{[%clk 0:02:53]} 7. bxc3 {[%clk 0:02:59.2]} 7... Bc5 {[%clk 0:02:53.7]} 8. O-O
{[%clk 0:02:58.9]} 8... O-O {[%clk 0:02:54]} 9. Re1 {[%clk 0:02:59.2]} 9... Bg4
{[%clk 0:02:54.6]} 10. h3 {[%clk 0:02:59]} 10... Bh5 {[%clk 0:02:55.1]} 11. g4
{[%clk 0:02:59.2]} 11... Bg6 {[%clk 0:02:55.6]} 12. Nxe5 {[%clk 0:02:59.4]}
12... Nxe5 {[%clk 0:02:56.2]} 13. Rxe5 {[%clk 0:02:59.6]} 13... Bd6 {[%clk
0:02:56.3]} 14. Re1 {[%clk 0:02:57.1]} 14... f5 {[%clk 0:02:56.5]} 15. d4 {[%clk
0:02:54]} 15... Qh4 {[%clk 0:02:51.2]} 16. g5 {[%clk 0:02:42.9]} 16... Bh5
{[%clk 0:02:40.6]} 17. Qd3 {[%clk 0:02:41.4]} 17... f4 {[%clk 0:02:39.7]} 18.
Qc4+ {[%clk 0:02:17.3]} 18... Kh8 {[%clk 0:02:38.3]} 19. Qd5 {[%clk 0:02:17.2]}
19... f3 {[%clk 0:02:34.5]} 20. Bf1 {[%clk 0:02:17.2]} 20... Rf4 {[%clk
0:02:16.5]} 21. Bxf4 {[%clk 0:02:09.4]} 21... Qxf4 {[%clk 0:02:15.3]} 22. Re5
{[%clk 0:02:08.6]} 22... Bxe5 {[%clk 0:01:45]} 23. Qxe5 {[%clk 0:02:08]} 23...
Qxe5 {[%clk 0:01:45.2]} 24. dxe5 {[%clk 0:02:08]} 24... Re8 {[%clk 0:01:45.9]}
25. Re1 {[%clk 0:02:02.4]} 25... Bg6 {[%clk 0:01:45.1]} 26. Re3 {[%clk
0:01:59.8]} 26... Bxc2 {[%clk 0:01:44.5]} 27. Rxf3 {[%clk 0:01:59.7]} 27... Kg8
{[%clk 0:01:45]} 28. Re3 {[%clk 0:01:59.2]} 28... Kf7 {[%clk 0:01:44.9]} 29.
Bc4+ {[%clk 0:01:57.7]} 29... Kg6 {[%clk 0:01:44.8]} 30. f4 {[%clk 0:01:56.6]}
30... Kf5 {[%clk 0:01:44.7]} 31. Re2 {[%clk 0:01:51.1]} 31... Be4 {[%clk
0:01:41.4]} 32. Rf2 {[%clk 0:01:40.5]} 32... Rd8 {[%clk 0:01:41.7]} 33. e6
{[%clk 0:01:37.6]} 33... Rd1+ {[%clk 0:01:40.5]} 34. Rf1 {[%clk 0:01:34.4]}
34... Rd2 {[%clk 0:01:38.9]} 35. Rf2 {[%clk 0:01:31.6]} 35... Rd1+ {[%clk
0:01:39.3]} 36. Kh2 {[%clk 0:01:30.4]} 36... Rh1+ {[%clk 0:01:38.3]} 37. Kg3
{[%clk 0:01:30.6]} 37... Rg1+ {[%clk 0:01:38.6]} 38. Kh4 {[%clk 0:01:31]} 38...
h6 {[%clk 0:01:27.9]} 39. e7 {[%clk 0:01:29.1]} 39... Bc6 {[%clk 0:01:27.9]} 40.
Bd3+ {[%clk 0:01:15.3]} 40... Ke6 {[%clk 0:01:25.7]} 41. Re2+ {[%clk 0:01:12.5]}
41... Kf7 {[%clk 0:01:23.7]} 42. g6+ {[%clk 0:00:59.2]} 42... Ke8 {[%clk
0:01:21.3]} 43. f5 {[%clk 0:00:57.3]} 43... Bd5 {[%clk 0:01:14.4]} 44. f6 {[%clk
0:00:51.7]} 44... gxf6 {[%clk 0:01:14.3]} 45. Kh5 {[%clk 0:00:51.5]} 45... Rg3
{[%clk 0:01:07.9]} 46. Bf5 {[%clk 0:00:42.3]} 46... Rg5+ {[%clk 0:01:07.3]} 47.
Kxh6 {[%clk 0:00:41.9]} 47... Rxf5 {[%clk 0:01:07.7]} 48. h4 {[%clk 0:00:40.6]}
48... Re5 {[%clk 0:00:59.2]} 49. Rxe5 {[%clk 0:00:31.4]} 49... fxe5 {[%clk
0:00:59.6]} 50. Kg5 {[%clk 0:00:31.8]} 50... Kxe7 {[%clk 0:00:59.9]} 51. h5
{[%clk 0:00:32]} 51... Kf8 {[%clk 0:00:58.8]} 52. h6 {[%clk 0:00:32.3]} 52...
Kg8 {[%clk 0:00:58.7]} 53. Kf6 {[%clk 0:00:29.2]} 53... e4 {[%clk 0:00:58]} 54.
g7 {[%clk 0:00:29]} 54... e3 {[%clk 0:00:51.4]} 55. Kg6 {[%clk 0:00:28.4]} 55...
Bf7+ {[%clk 0:00:50.8]} 56. Kf6 {[%clk 0:00:28.1]} 56... Bxa2 {[%clk 0:00:46.6]}
57. Kg6 {[%clk 0:00:19.7]} 57... Bb1+ {[%clk 0:00:46.6]} 58. Kf6 {[%clk
0:00:19.6]} 58... e2 {[%clk 0:00:46.3]} 59. h7+ {[%clk 0:00:20]} 59... Kxh7
{[%clk 0:00:46.5]} 60. Kf7 {[%clk 0:00:19.9]} 60... Ba2+ {[%clk 0:00:46.9]} 61.
Kf8 {[%clk 0:00:19.9]} 61... Bg8 {[%clk 0:00:45.5]} 0-1

[Event "Late-Titled-Tuesday-Blitz-May-28-2024"]
[Site "Chess.com"]
[Date "2024.05.28"]
[Round "11"]
[White "tactic"]
[Black "Boninknights"]
[Result "1-0"]
[WhiteElo "2551"]
[BlackElo "2426"]
[TimeControl "180+1"]
[EndTime "16:06:02 PDT"]
[Termination "tactic won on time"]

1. e4 {[%clk 0:02:58.6]} 1... c5 {[%clk 0:02:58.1]} 2. c3 {[%clk 0:02:58.8]}
2... e6 {[%clk 0:02:56.6]} 3. Nf3 {[%clk 0:02:58.2]} 3... a6 {[%clk 0:02:54.7]}
4. d4 {[%clk 0:02:57.5]} 4... d5 {[%clk 0:02:54.4]} 5. e5 {[%clk 0:02:57.6]}
5... Qb6 {[%clk 0:02:50.5]} 6. Bd3 {[%clk 0:02:53.6]} 6... Bd7 {[%clk 0:02:46]}
7. O-O {[%clk 0:02:53.5]} 7... Bb5 {[%clk 0:02:44.3]} 8. Bxb5+ {[%clk
0:02:48.6]} 8... axb5 {[%clk 0:02:41.2]} 9. dxc5 {[%clk 0:02:44.3]} 9... Bxc5
{[%clk 0:02:39.7]} 10. b4 {[%clk 0:02:45]} 10... Bf8 {[%clk 0:02:37.9]} 11. Be3
{[%clk 0:02:44.8]} 11... Qa6 {[%clk 0:02:36.4]} 12. Nd4 {[%clk 0:02:36.7]} 12...
Nd7 {[%clk 0:02:33.1]} 13. f4 {[%clk 0:02:36.4]} 13... Rc8 {[%clk 0:02:25.1]}
14. Qe2 {[%clk 0:02:32.4]} 14... Rc4 {[%clk 0:02:21.6]} 15. Rc1 {[%clk
0:02:06.1]} 15... Nh6 {[%clk 0:02:11.1]} 16. Nd2 {[%clk 0:02:04.4]} 16... Rc8
{[%clk 0:02:04]} 17. Nxb5 {[%clk 0:02:01]} 17... Nf5 {[%clk 0:02:02.3]} 18. Bf2
{[%clk 0:01:59.1]} 18... h5 {[%clk 0:01:57]} 19. a4 {[%clk 0:01:58]} 19... Be7
{[%clk 0:01:48.5]} 20. Nf3 {[%clk 0:01:56.8]} 20... h4 {[%clk 0:01:29.5]} 21.
Nfd4 {[%clk 0:01:56.4]} 21... g6 {[%clk 0:01:21.7]} 22. c4 {[%clk 0:01:34.3]}
22... Nxd4 {[%clk 0:01:08.9]} 23. Bxd4 {[%clk 0:01:31.5]} 23... Bxb4 {[%clk
0:01:05.2]} 24. cxd5 {[%clk 0:01:31.7]} 24... O-O {[%clk 0:00:59.1]} 25. Rc4
{[%clk 0:01:02]} 25... Rxc4 {[%clk 0:00:49.7]} 26. Qxc4 {[%clk 0:01:02.9]} 26...
Bd2 {[%clk 0:00:49.1]} 27. Bf2 {[%clk 0:00:57.8]} 27... Nb6 {[%clk 0:00:46.6]}
28. Qd4 {[%clk 0:00:55.6]} 28... Ba5 {[%clk 0:00:42.3]} 29. dxe6 {[%clk
0:00:54.8]} 29... fxe6 {[%clk 0:00:37.7]} 30. Qd6 {[%clk 0:00:54.3]} 30... Nd5
{[%clk 0:00:35.1]} 31. g3 {[%clk 0:00:48.3]} 31... h3 {[%clk 0:00:30.1]} 32.
Qxa6 {[%clk 0:00:40.7]} 32... bxa6 {[%clk 0:00:28.7]} 33. Nd4 {[%clk 0:00:41.3]}
33... Kf7 {[%clk 0:00:24.8]} 34. Rc1 {[%clk 0:00:40.7]} 34... Rb8 {[%clk
0:00:22.2]} 35. Nc6 {[%clk 0:00:41.1]} 35... Rc8 {[%clk 0:00:20]} 36. Rc2 {[%clk
0:00:32]} 36... Bb6 {[%clk 0:00:17.6]} 37. Bxb6 {[%clk 0:00:16.9]} 37... Nxb6
{[%clk 0:00:16.1]} 38. a5 {[%clk 0:00:17.4]} 38... Nd5 {[%clk 0:00:14.3]} 39.
Nd4 {[%clk 0:00:15.7]} 39... Rb8 {[%clk 0:00:12.6]} 40. Kf2 {[%clk 0:00:14.1]}
40... Rb1 {[%clk 0:00:12.1]} 41. Nf3 {[%clk 0:00:12.9]} 41... Ra1 {[%clk
0:00:10.5]} 42. Ng5+ {[%clk 0:00:12.1]} 42... Ke7 {[%clk 0:00:10.3]} 43. Rc6
{[%clk 0:00:12.4]} 43... Rxa5 {[%clk 0:00:08.5]} 44. Rxe6+ {[%clk 0:00:13]}
44... Kf8 {[%clk 0:00:07.4]} 45. Rxg6 {[%clk 0:00:12.8]} 45... Ra2+ {[%clk
0:00:05.5]} 46. Kf3 {[%clk 0:00:12.7]} 46... Rxh2 {[%clk 0:00:04.4]} 47. Rxa6
{[%clk 0:00:13.2]} 47... Rh1 {[%clk 0:00:02.8]} 48. Rh6 {[%clk 0:00:12.5]} 48...
Nc3 {[%clk 0:00:01.1]} 49. Rxh3 {[%clk 0:00:11.9]} 49... Rxh3 {[%clk 0:00:00.7]}
50. Nxh3 {[%clk 0:00:12.1]} 1-0